[Event "*** SCC Grand Prix: Titled Tuesday Blitz"]
[Site "Chess.com"]
[Date "2020.07.14"]
[Round "2"]
[White "margarita_2703"]
[Black "bmt011"]
[Result "0-1"]
[WhiteElo "2376"]
[BlackElo "2120"]
[TimeControl "180+1"]
[EndTime "10:18:18 PDT"]
[Termination "bmt011 won on time"]

1. Nf3 {[%clk 0:02:56.4]} 1... Nf6 {[%clk 0:02:58.6]} 2. d4 {[%clk 0:02:53]}
2... e6 {[%clk 0:02:56.6]} 3. Bf4 {[%clk 0:02:51.6]} 3... Be7 {[%clk 0:02:53.4]}
4. e3 {[%clk 0:02:51.5]} 4... b6 {[%clk 0:02:52.4]} 5. Nbd2 {[%clk 0:02:51]}
5... Bb7 {[%clk 0:02:53.3]} 6. Bd3 {[%clk 0:02:49.8]} 6... O-O {[%clk 0:02:52]}
7. c3 {[%clk 0:02:48.6]} 7... d6 {[%clk 0:02:51.4]} 8. e4 {[%clk 0:02:42.3]}
8... e5 {[%clk 0:02:28.1]} 9. dxe5 {[%clk 0:02:37.2]} 9... Nh5 {[%clk
0:02:23.4]} 10. Be3 {[%clk 0:02:28.9]} 10... dxe5 {[%clk 0:02:20.1]} 11. Nxe5
{[%clk 0:02:26]} 11... Bf6 {[%clk 0:02:05.7]} 12. Qxh5 {[%clk 0:02:22.5]} 12...
Bxe5 {[%clk 0:02:00.1]} 13. Bc2 {[%clk 0:02:18.3]} 13... f5 {[%clk 0:01:43.7]}
14. f4 {[%clk 0:02:13.4]} 14... g6 {[%clk 0:01:27.8]} 15. Qe2 {[%clk 0:02:03.9]}
15... Bd6 {[%clk 0:01:23.6]} 16. e5 {[%clk 0:01:58]} 16... Be7 {[%clk 0:01:23]}
17. O-O-O {[%clk 0:01:54.2]} 17... Ba6 {[%clk 0:01:19.3]} 18. Qf3 {[%clk
0:01:44]} 18... Nd7 {[%clk 0:01:13.3]} 19. e6 {[%clk 0:01:35.4]} 19... Nf6
{[%clk 0:00:58.6]} 20. Nc4 {[%clk 0:01:32.2]} 20... Qc8 {[%clk 0:00:58.8]} 21.
Ne5 {[%clk 0:01:29]} 21... c5 {[%clk 0:00:45.1]} 22. Nd7 {[%clk 0:01:03.4]}
22... Bb7 {[%clk 0:00:44.7]} 23. Qh3 {[%clk 0:01:00.2]} 23... Rd8 {[%clk
0:00:44.4]} 24. Nxf6+ {[%clk 0:00:56.6]} 24... Bxf6 {[%clk 0:00:44.3]} 25. Rxd8+
{[%clk 0:00:52.9]} 25... Bxd8 {[%clk 0:00:43.4]} 26. Bxf5 {[%clk 0:00:48.6]}
26... gxf5 {[%clk 0:00:34.9]} 27. Qxf5 {[%clk 0:00:46.5]} 27... Qc7 {[%clk
0:00:35.1]} 28. Rd1 {[%clk 0:00:43.3]} 28... Bc6 {[%clk 0:00:28.9]} 29. g4
{[%clk 0:00:23.1]} 29... Qg7 {[%clk 0:00:28.1]} 30. Qh5 {[%clk 0:00:19.2]} 30...
Be7 {[%clk 0:00:24.7]} 31. f5 {[%clk 0:00:17.5]} 31... Be8 {[%clk 0:00:23.6]}
32. Qh3 {[%clk 0:00:16.9]} 32... Bg5 {[%clk 0:00:23.5]} 33. Qg3 {[%clk
0:00:13.6]} 33... Rd8 {[%clk 0:00:19.2]} 34. Rxd8 {[%clk 0:00:12.2]} 34... Bxd8
{[%clk 0:00:20.1]} 35. g5 {[%clk 0:00:12.3]} 35... h6 {[%clk 0:00:18.6]} 36. f6
{[%clk 0:00:11]} 36... Qg6 {[%clk 0:00:18.2]} 37. Qb8 {[%clk 0:00:07.3]} 37...
Bxf6 {[%clk 0:00:16.5]} 38. gxf6 {[%clk 0:00:06.4]} 38... Qxf6 {[%clk
0:00:15.7]} 39. Qxe8+ {[%clk 0:00:05.4]} 39... Kh7 {[%clk 0:00:16.6]} 40. Qf7+
{[%clk 0:00:04.7]} 40... Qxf7 {[%clk 0:00:16.7]} 41. exf7 {[%clk 0:00:04.8]}
41... Kg7 {[%clk 0:00:17.5]} 42. f8=Q+ {[%clk 0:00:03]} 42... Kxf8 {[%clk
0:00:16.8]} 43. Bxh6+ {[%clk 0:00:02.8]} 43... Kf7 {[%clk 0:00:17.7]} 44. Bf4
{[%clk 0:00:03.1]} 44... Ke6 {[%clk 0:00:18.6]} 0-1

[Event "*** SCC Grand Prix: Titled Tuesday Blitz"]
[Site "Chess.com"]
[Date "2020.07.14"]
[Round "2"]
[White "Pavel_Mir"]
[Black "HouseOfDurin"]
[Result "1-0"]
[WhiteElo "2360"]
[BlackElo "2004"]
[TimeControl "180+1"]
[EndTime "10:18:18 PDT"]
[Termination "Pavel_Mir won on time"]

1. e4 {[%clk 0:03:00.9]} 1... c5 {[%clk 0:02:59.9]} 2. Nf3 {[%clk 0:03:00.4]}
2... Nc6 {[%clk 0:03:00.1]} 3. Nc3 {[%clk 0:03:00.1]} 3... e5 {[%clk 0:02:59]}
4. Bc4 {[%clk 0:02:59.1]} 4... g6 {[%clk 0:02:58.6]} 5. d3 {[%clk 0:02:57.6]}
5... h6 {[%clk 0:02:58.5]} 6. O-O {[%clk 0:02:56.3]} 6... Bg7 {[%clk 0:02:58.6]}
7. a3 {[%clk 0:02:56.3]} 7... a5 {[%clk 0:02:57.2]} 8. Nb5 {[%clk 0:02:49.7]}
8... d6 {[%clk 0:02:55.9]} 9. c3 {[%clk 0:02:50.1]} 9... Nge7 {[%clk 0:02:25.2]}
10. h3 {[%clk 0:02:42]} 10... O-O {[%clk 0:02:23.1]} 11. Be3 {[%clk 0:02:42.5]}
11... b6 {[%clk 0:02:04.5]} 12. d4 {[%clk 0:02:40.7]} 12... Kh7 {[%clk
0:01:54.1]} 13. Qd2 {[%clk 0:02:21.5]} 13... f5 {[%clk 0:01:45]} 14. dxe5 {[%clk
0:02:13.9]} 14... dxe5 {[%clk 0:01:40.3]} 15. Qxd8 {[%clk 0:02:09]} 15... Rxd8
{[%clk 0:01:39.6]} 16. Rad1 {[%clk 0:02:08.9]} 16... Ba6 {[%clk 0:01:27.3]} 17.
a4 {[%clk 0:01:50.2]} 17... f4 {[%clk 0:01:06.9]} 18. Bc1 {[%clk 0:01:49.4]}
18... Rxd1 {[%clk 0:01:06.8]} 19. Rxd1 {[%clk 0:01:48.6]} 19... Rd8 {[%clk
0:01:07.3]} 20. Rxd8 {[%clk 0:01:35.7]} 20... Nxd8 {[%clk 0:01:08.2]} 21. h4
{[%clk 0:01:35]} 21... Bf6 {[%clk 0:01:00.2]} 22. g3 {[%clk 0:01:34.3]} 22... g5
{[%clk 0:00:58.6]} 23. h5 {[%clk 0:01:24]} 23... Kg7 {[%clk 0:00:56.9]} 24. Nh2
{[%clk 0:01:22.6]} 24... Bxb5 {[%clk 0:00:32.8]} 25. axb5 {[%clk 0:01:20.3]}
25... Nf7 {[%clk 0:00:32.6]} 26. Bxf7 {[%clk 0:00:58.3]} 26... Kxf7 {[%clk
0:00:33.5]} 27. Ng4 {[%clk 0:00:58.3]} 27... Bg7 {[%clk 0:00:31.3]} 28. Kf1
{[%clk 0:00:57.5]} 28... Ke6 {[%clk 0:00:31.1]} 29. Ke2 {[%clk 0:00:57]} 29...
c4 {[%clk 0:00:27.8]} 30. Kd1 {[%clk 0:00:52.8]} 30... Nc8 {[%clk 0:00:26.8]}
31. gxf4 {[%clk 0:00:34.9]} 31... gxf4 {[%clk 0:00:27.7]} 32. f3 {[%clk
0:00:33]} 32... Nd6 {[%clk 0:00:27.3]} 33. Kc2 {[%clk 0:00:32.7]} 33... a4
{[%clk 0:00:20.9]} 34. Bd2 {[%clk 0:00:32.5]} 34... Nxb5 {[%clk 0:00:21]} 35.
Be1 {[%clk 0:00:32.7]} 35... Nc7 {[%clk 0:00:17.5]} 36. Bh4 {[%clk 0:00:32.5]}
36... b5 {[%clk 0:00:15.3]} 37. Bd8 {[%clk 0:00:31.9]} 37... Ne8 {[%clk
0:00:15.7]} 38. Bh4 {[%clk 0:00:28]} 38... Nf6 {[%clk 0:00:11.3]} 39. Bxf6
{[%clk 0:00:27.3]} 39... Bxf6 {[%clk 0:00:12.2]} 40. Nxh6 {[%clk 0:00:27.9]}
40... Bg7 {[%clk 0:00:09.7]} 41. Nf5 {[%clk 0:00:27.6]} 41... Bf6 {[%clk
0:00:08.4]} 42. Nh6 {[%clk 0:00:27.2]} 42... Bg5 {[%clk 0:00:06.8]} 43. Ng4
{[%clk 0:00:27.3]} 43... Bf6 {[%clk 0:00:04.5]} 44. Kb1 {[%clk 0:00:25.1]} 44...
Kf7 {[%clk 0:00:03.6]} 45. Ka2 {[%clk 0:00:25.2]} 45... Ke6 {[%clk 0:00:02.4]}
46. Ka3 {[%clk 0:00:25.4]} 46... Be7+ {[%clk 0:00:03]} 47. Ka2 {[%clk
0:00:25.8]} 47... Bc5 {[%clk 0:00:02.8]} 48. h6 {[%clk 0:00:25.2]} 48... Kf7
{[%clk 0:00:01.2]} 49. Nxe5+ {[%clk 0:00:25.2]} 1-0

[Event "*** SCC Grand Prix: Titled Tuesday Blitz"]
[Site "Chess.com"]
[Date "2020.07.14"]
[Round "2"]
[White "LilRag"]
[Black "tigra"]
[Result "0-1"]
[WhiteElo "2513"]
[BlackElo "2817"]
[TimeControl "180+1"]
[EndTime "10:18:20 PDT"]
[Termination "tigra won by resignation"]

1. d4 {[%clk 0:03:00.9]} 1... d6 {[%clk 0:02:59.5]} 2. e4 {[%clk 0:03:00.2]}
2... Nf6 {[%clk 0:02:58.8]} 3. Nc3 {[%clk 0:03:00.5]} 3... e5 {[%clk 0:02:59.3]}
4. Nf3 {[%clk 0:02:58.3]} 4... Nbd7 {[%clk 0:02:59.2]} 5. dxe5 {[%clk
0:02:57.3]} 5... dxe5 {[%clk 0:02:55.8]} 6. Bc4 {[%clk 0:02:56.4]} 6... Bb4
{[%clk 0:02:55.2]} 7. Qe2 {[%clk 0:02:47.6]} 7... O-O {[%clk 0:02:51.8]} 8. Bd2
{[%clk 0:02:44.7]} 8... c6 {[%clk 0:02:49.7]} 9. a3 {[%clk 0:02:44]} 9... Ba5
{[%clk 0:02:44.4]} 10. h3 {[%clk 0:02:41.9]} 10... b5 {[%clk 0:02:42.7]} 11. Ba2
{[%clk 0:02:39.6]} 11... Qe7 {[%clk 0:02:12.2]} 12. O-O {[%clk 0:02:17]} 12...
Bc7 {[%clk 0:02:08.6]} 13. Rad1 {[%clk 0:02:10]} 13... a5 {[%clk 0:02:06.2]} 14.
Rfe1 {[%clk 0:01:47]} 14... b4 {[%clk 0:01:56.1]} 15. Nb1 {[%clk 0:01:44.6]}
15... Nb6 {[%clk 0:01:48.2]} 16. Bg5 {[%clk 0:01:24.3]} 16... h6 {[%clk
0:01:42.4]} 17. Bh4 {[%clk 0:01:22.2]} 17... Ba6 {[%clk 0:01:20.5]} 18. Qe3
{[%clk 0:01:12.8]} 18... Rfd8 {[%clk 0:01:18.9]} 19. Nbd2 {[%clk 0:00:41.2]}
19... c5 {[%clk 0:01:02.9]} 20. Nf1 {[%clk 0:00:38.8]} 20... c4 {[%clk
0:00:53.4]} 21. Ng3 {[%clk 0:00:35]} 21... Rxd1 {[%clk 0:00:40.1]} 22. Rxd1
{[%clk 0:00:34.3]} 22... Rd8 {[%clk 0:00:40.8]} 23. Re1 {[%clk 0:00:30.5]} 23...
Bc8 {[%clk 0:00:28.3]} 24. Nh5 {[%clk 0:00:28.5]} 24... Kh7 {[%clk 0:00:20.5]}
25. Nxf6+ {[%clk 0:00:20.7]} 25... gxf6 {[%clk 0:00:21.4]} 26. Nd2 {[%clk
0:00:16.6]} 26... Be6 {[%clk 0:00:21]} 27. axb4 {[%clk 0:00:15.3]} 27... axb4
{[%clk 0:00:20.8]} 28. Bb1 {[%clk 0:00:14.1]} 28... Rg8 {[%clk 0:00:20.1]} 29.
Kh2 {[%clk 0:00:13.3]} 29... Bd8 {[%clk 0:00:18.4]} 30. Rg1 {[%clk 0:00:12.9]}
30... Qc7 {[%clk 0:00:18.3]} 31. Nf1 {[%clk 0:00:12.7]} 31... Nd7 {[%clk
0:00:18.4]} 32. Ng3 {[%clk 0:00:12.9]} 32... Nc5 {[%clk 0:00:17.3]} 33. c3
{[%clk 0:00:12.8]} 33... bxc3 {[%clk 0:00:16.7]} 34. bxc3 {[%clk 0:00:12.4]}
34... Rg6 {[%clk 0:00:14]} 35. Bc2 {[%clk 0:00:12.6]} 35... Be7 {[%clk
0:00:14.2]} 36. Bd1 {[%clk 0:00:13]} 36... Nd3 {[%clk 0:00:14.1]} 37. Bh5 {[%clk
0:00:13.1]} 37... Rg7 {[%clk 0:00:10.4]} 38. Ne2 {[%clk 0:00:12.9]} 38... Bc5
{[%clk 0:00:10.1]} 39. Qf3 {[%clk 0:00:11]} 39... f5 {[%clk 0:00:10.5]} 40. Bg3
{[%clk 0:00:06.7]} 40... f4 {[%clk 0:00:06.5]} 41. Bh4 {[%clk 0:00:06.6]} 41...
f5 {[%clk 0:00:06.9]} 42. exf5 {[%clk 0:00:06.1]} 42... Bxf5 {[%clk 0:00:06.7]}
43. Kh1 {[%clk 0:00:06.4]} 43... e4 {[%clk 0:00:06.8]} 44. Bg6+ {[%clk 0:00:02]}
44... Kxg6 {[%clk 0:00:06.8]} 0-1

[Event "*** SCC Grand Prix: Titled Tuesday Blitz"]
[Site "Chess.com"]
[Date "2020.07.14"]
[Round "2"]
[White "PawnEatingZombie"]
[Black "Mikhail_Golubev"]
[Result "1-0"]
[WhiteElo "2214"]
[BlackElo "2582"]
[TimeControl "180+1"]
[EndTime "10:18:20 PDT"]
[Termination "PawnEatingZombie won on time"]

1. d4 {[%clk 0:03:00.9]} 1... Nf6 {[%clk 0:02:59]} 2. c4 {[%clk 0:03:00.5]} 2...
g6 {[%clk 0:02:59]} 3. Nc3 {[%clk 0:03:00.1]} 3... Bg7 {[%clk 0:02:59]} 4. e4
{[%clk 0:03:00.6]} 4... d6 {[%clk 0:02:59.2]} 5. Be2 {[%clk 0:03:00]} 5... O-O
{[%clk 0:02:58.8]} 6. Be3 {[%clk 0:03:00.5]} 6... Nbd7 {[%clk 0:02:53.2]} 7. Nf3
{[%clk 0:02:58.8]} 7... e5 {[%clk 0:02:49.9]} 8. O-O {[%clk 0:02:58.1]} 8... Qe7
{[%clk 0:02:50]} 9. d5 {[%clk 0:02:55.7]} 9... Ng4 {[%clk 0:02:47.8]} 10. Bg5
{[%clk 0:02:54.9]} 10... f6 {[%clk 0:02:46.5]} 11. Bc1 {[%clk 0:02:54.7]} 11...
a5 {[%clk 0:02:35.6]} 12. Rb1 {[%clk 0:02:52.3]} 12... Nc5 {[%clk 0:02:31.7]}
13. Nd2 {[%clk 0:02:46.9]} 13... Nh6 {[%clk 0:02:13.6]} 14. b3 {[%clk
0:02:44.4]} 14... f5 {[%clk 0:02:11.5]} 15. a3 {[%clk 0:02:36.1]} 15... f4
{[%clk 0:02:07]} 16. b4 {[%clk 0:02:24.7]} 16... axb4 {[%clk 0:02:06.8]} 17.
axb4 {[%clk 0:02:25.6]} 17... Nd7 {[%clk 0:01:57.1]} 18. Nb5 {[%clk 0:02:02.6]}
18... Nf6 {[%clk 0:01:56.6]} 19. Qc2 {[%clk 0:01:52.8]} 19... g5 {[%clk
0:01:48.6]} 20. f3 {[%clk 0:01:51.6]} 20... g4 {[%clk 0:01:44.1]} 21. c5 {[%clk
0:01:48.7]} 21... gxf3 {[%clk 0:01:36.2]} 22. gxf3 {[%clk 0:01:34.9]} 22... Bh3
{[%clk 0:01:27.6]} 23. Rf2 {[%clk 0:01:33.8]} 23... Nh5 {[%clk 0:01:26.3]} 24.
cxd6 {[%clk 0:01:03.1]} 24... Qg5+ {[%clk 0:01:17.4]} 25. Kh1 {[%clk 0:01:02.7]}
25... Ng3+ {[%clk 0:01:11.8]} 26. hxg3 {[%clk 0:00:52.7]} 26... fxg3 {[%clk
0:01:11.6]} 27. Rg2 {[%clk 0:00:29.1]} 27... Qh4 {[%clk 0:00:58.6]} 28. Nf1
{[%clk 0:00:29]} 28... Ng4 {[%clk 0:00:57.1]} 29. Kg1 {[%clk 0:00:25.1]} 29...
Bxg2 {[%clk 0:00:25.1]} 30. Kxg2 {[%clk 0:00:23.8]} 30... Rf6 {[%clk 0:00:18.7]}
31. dxc7 {[%clk 0:00:08.8]} 31... Rc8 {[%clk 0:00:17.1]} 32. d6 {[%clk
0:00:07.1]} 32... Nf2 {[%clk 0:00:17]} 33. Nxg3 {[%clk 0:00:06]} 33... Rg6
{[%clk 0:00:16.3]} 34. Kxf2 {[%clk 0:00:05.3]} 34... Qxg3+ {[%clk 0:00:12.5]}
35. Ke3 {[%clk 0:00:05.3]} 35... Bh6+ {[%clk 0:00:10.6]} 36. Kd3 {[%clk
0:00:05.4]} 36... Qf2 {[%clk 0:00:08.3]} 37. d7 {[%clk 0:00:04.7]} 37... Rd6+
{[%clk 0:00:05.3]} 38. Kc4 {[%clk 0:00:04.4]} 38... Rc6+ {[%clk 0:00:04.5]} 39.
Kb3 {[%clk 0:00:04.4]} 39... Rf8 {[%clk 0:00:03.5]} 40. d8=Q {[%clk 0:00:04]}
40... Rxc2 {[%clk 0:00:03.1]} 41. Kxc2 {[%clk 0:00:03.4]} 41... Qxe2+ {[%clk
0:00:02.6]} 42. Kb3 {[%clk 0:00:03.9]} 42... Qxb5 {[%clk 0:00:01.8]} 43. Qxf8+
{[%clk 0:00:03.1]} 1-0

[Event "*** SCC Grand Prix: Titled Tuesday Blitz"]
[Site "Chess.com"]
[Date "2020.07.14"]
[Round "2"]
[White "DrVitman"]
[Black "SargissyanSargis"]
[Result "0-1"]
[WhiteElo "2521"]
[BlackElo "2307"]
[TimeControl "180+1"]
[EndTime "10:18:20 PDT"]
[Termination "SargissyanSargis won on time"]

1. e4 {[%clk 0:03:00.9]} 1... e5 {[%clk 0:02:59.7]} 2. Nf3 {[%clk 0:02:59.8]}
2... Nc6 {[%clk 0:02:59.7]} 3. Bc4 {[%clk 0:02:58.2]} 3... Bc5 {[%clk
0:02:59.1]} 4. O-O {[%clk 0:02:55.9]} 4... Nf6 {[%clk 0:02:58.8]} 5. d4 {[%clk
0:02:54.8]} 5... Bxd4 {[%clk 0:02:59]} 6. Nxd4 {[%clk 0:02:54.1]} 6... Nxd4
{[%clk 0:02:59.6]} 7. Bg5 {[%clk 0:02:54.2]} 7... d6 {[%clk 0:02:58.5]} 8. f4
{[%clk 0:02:50.8]} 8... Be6 {[%clk 0:02:58]} 9. Bxe6 {[%clk 0:02:45.3]} 9...
Nxe6 {[%clk 0:02:57.7]} 10. Bxf6 {[%clk 0:02:40.2]} 10... Qxf6 {[%clk
0:02:33.2]} 11. f5 {[%clk 0:02:39.5]} 11... Nc5 {[%clk 0:02:29.3]} 12. Nc3
{[%clk 0:02:35.7]} 12... c6 {[%clk 0:02:24.2]} 13. b4 {[%clk 0:02:13.9]} 13...
Na6 {[%clk 0:02:22.5]} 14. b5 {[%clk 0:02:12.1]} 14... Nc5 {[%clk 0:02:10.2]}
15. Rb1 {[%clk 0:02:07.9]} 15... O-O {[%clk 0:02:09.4]} 16. Qf3 {[%clk
0:01:58.9]} 16... Rad8 {[%clk 0:01:51.3]} 17. g4 {[%clk 0:01:33.1]} 17... d5
{[%clk 0:01:48.2]} 18. exd5 {[%clk 0:01:29]} 18... e4 {[%clk 0:01:46.6]} 19.
Nxe4 {[%clk 0:01:27.5]} 19... Nxe4 {[%clk 0:01:09.1]} 20. Qxe4 {[%clk
0:01:28.4]} 20... Rxd5 {[%clk 0:01:09.3]} 21. bxc6 {[%clk 0:01:25.4]} 21... Rd4
{[%clk 0:01:06.1]} 22. Qf3 {[%clk 0:01:13.2]} 22... Qxc6 {[%clk 0:01:03]} 23. h3
{[%clk 0:00:39.9]} 23... Qxc2 {[%clk 0:00:54.9]} 24. Rxb7 {[%clk 0:00:32.5]}
24... Rd3 {[%clk 0:00:45.4]} 25. Qf2 {[%clk 0:00:29.2]} 25... Qc6 {[%clk
0:00:41.9]} 26. Rxa7 {[%clk 0:00:19.9]} 26... Rxh3 {[%clk 0:00:40]} 27. Qg2
{[%clk 0:00:17.9]} 27... Qc5+ {[%clk 0:00:37]} 28. Qf2 {[%clk 0:00:16.6]} 28...
Rg3+ {[%clk 0:00:36]} 29. Kh2 {[%clk 0:00:16.7]} 29... Qxf2+ {[%clk 0:00:31.1]}
30. Rxf2 {[%clk 0:00:17.6]} 30... Rxg4 {[%clk 0:00:31.7]} 31. a4 {[%clk
0:00:16.6]} 31... h5 {[%clk 0:00:26.3]} 32. a5 {[%clk 0:00:15.3]} 32... Ra4
{[%clk 0:00:18.4]} 33. f6 {[%clk 0:00:15.2]} 33... gxf6 {[%clk 0:00:13.9]} 34.
Rxf6 {[%clk 0:00:14.6]} 34... Kg7 {[%clk 0:00:14.5]} 35. Rf5 {[%clk 0:00:11.5]}
35... Kg6 {[%clk 0:00:14.5]} 36. Rf3 {[%clk 0:00:09.2]} 36... Rc8 {[%clk
0:00:11.7]} 37. a6 {[%clk 0:00:06.8]} 37... Rc6 {[%clk 0:00:10.6]} 38. Raxf7
{[%clk 0:00:06.3]} 38... Raxa6 {[%clk 0:00:09.3]} 39. Rf8 {[%clk 0:00:04.9]}
39... Kh6 {[%clk 0:00:07.4]} 40. Rg8 {[%clk 0:00:01.7]} 40... Rg6 {[%clk
0:00:07.3]} 0-1

[Event "*** SCC Grand Prix: Titled Tuesday Blitz"]
[Site "Chess.com"]
[Date "2020.07.14"]
[Round "2"]
[White "zajka-molotok"]
[Black "FMOlexandrProhorov"]
[Result "1-0"]
[WhiteElo "2411"]
[BlackElo "2147"]
[TimeControl "180+1"]
[EndTime "10:18:22 PDT"]
[Termination "zajka-molotok won by resignation"]

1. e4 {[%clk 0:02:38.5]} 1... c5 {[%clk 0:02:54.3]} 2. c3 {[%clk 0:02:37.2]}
2... Nf6 {[%clk 0:02:50.5]} 3. e5 {[%clk 0:02:37]} 3... Nd5 {[%clk 0:02:51]} 4.
d4 {[%clk 0:02:37.3]} 4... cxd4 {[%clk 0:02:50]} 5. Nf3 {[%clk 0:02:36.9]} 5...
e6 {[%clk 0:02:48.6]} 6. cxd4 {[%clk 0:02:35.2]} 6... b6 {[%clk 0:02:48.1]} 7.
Bc4 {[%clk 0:02:32.2]} 7... Bb7 {[%clk 0:02:47.2]} 8. O-O {[%clk 0:02:32.1]}
8... d6 {[%clk 0:02:43.7]} 9. Nc3 {[%clk 0:02:27.8]} 9... Nxc3 {[%clk
0:02:38.3]} 10. bxc3 {[%clk 0:02:28.7]} 10... Qc7 {[%clk 0:02:37.7]} 11. Bb5+
{[%clk 0:01:52.4]} 11... Nd7 {[%clk 0:02:36.7]} 12. Bf4 {[%clk 0:01:46.4]} 12...
Be7 {[%clk 0:02:18.2]} 13. exd6 {[%clk 0:01:36.3]} 13... Bxd6 {[%clk 0:02:17.2]}
14. Bxd6 {[%clk 0:01:25.4]} 14... Qxd6 {[%clk 0:02:16.7]} 15. Ne5 {[%clk
0:01:25.4]} 15... Rd8 {[%clk 0:02:00]} 16. Bxd7+ {[%clk 0:01:18.6]} 16... Rxd7
{[%clk 0:01:59.6]} 17. Nxd7 {[%clk 0:01:19.4]} 17... Qxd7 {[%clk 0:01:58.9]} 18.
Qg4 {[%clk 0:01:15.1]} 18... O-O {[%clk 0:01:55.9]} 19. a4 {[%clk 0:01:05.3]}
19... Qc6 {[%clk 0:01:49.2]} 20. Qg3 {[%clk 0:01:00.4]} 20... Rc8 {[%clk
0:01:33.7]} 21. Rfc1 {[%clk 0:00:59.1]} 21... Qc4 {[%clk 0:01:24.5]} 22. a5
{[%clk 0:00:56]} 22... b5 {[%clk 0:01:20]} 23. a6 {[%clk 0:00:53.2]} 23... Bd5
{[%clk 0:01:18]} 24. h3 {[%clk 0:00:51.4]} 24... h6 {[%clk 0:01:07.8]} 25. Rcb1
{[%clk 0:00:44.1]} 25... Kh7 {[%clk 0:00:53.9]} 26. Rb4 {[%clk 0:00:41.1]} 26...
Qc6 {[%clk 0:00:52.6]} 27. Qd3+ {[%clk 0:00:29.1]} 27... f5 {[%clk 0:00:48.2]}
28. Qxb5 {[%clk 0:00:27.7]} 28... Qxc3 {[%clk 0:00:44.5]} 29. Rbb1 {[%clk
0:00:14]} 29... Qxd4 {[%clk 0:00:40.4]} 30. Qf1 {[%clk 0:00:12.6]} 30... e5
{[%clk 0:00:35.4]} 31. Rd1 {[%clk 0:00:12.5]} 31... Qe4 {[%clk 0:00:28.3]} 32.
Re1 {[%clk 0:00:11.8]} 32... Qd4 {[%clk 0:00:23.5]} 33. Rad1 {[%clk 0:00:11]}
33... Qb6 {[%clk 0:00:17.4]} 34. Rxe5 {[%clk 0:00:10.1]} 34... Ba8 {[%clk
0:00:14.3]} 35. Qe1 {[%clk 0:00:09.6]} 35... f4 {[%clk 0:00:11.4]} 36. Qd2
{[%clk 0:00:07.2]} 36... Rf8 {[%clk 0:00:09.6]} 37. Qd3+ {[%clk 0:00:06.7]}
37... Kh8 {[%clk 0:00:08.8]} 38. Kh2 {[%clk 0:00:05.9]} 38... Qc6 {[%clk
0:00:08.1]} 39. f3 {[%clk 0:00:04.8]} 39... Rc8 {[%clk 0:00:07]} 40. Rd5 {[%clk
0:00:04.5]} 40... Qf6 {[%clk 0:00:05.9]} 41. Rd8+ {[%clk 0:00:03.9]} 1-0

[Event "*** SCC Grand Prix: Titled Tuesday Blitz"]
[Site "Chess.com"]
[Date "2020.07.14"]
[Round "2"]
[White "awesomevishesh"]
[Black "QueenOfTactics90"]
[Result "1-0"]
[WhiteElo "2355"]
[BlackElo "1999"]
[TimeControl "180+1"]
[EndTime "10:18:22 PDT"]
[Termination "awesomevishesh won by checkmate"]

1. d4 {[%clk 0:03:00.9]} 1... Nf6 {[%clk 0:02:59.1]} 2. c4 {[%clk 0:03:00.9]}
2... e6 {[%clk 0:02:59.8]} 3. g3 {[%clk 0:03:00.5]} 3... d5 {[%clk 0:03:00]} 4.
Bg2 {[%clk 0:03:00]} 4... Be7 {[%clk 0:02:59.4]} 5. Nf3 {[%clk 0:03:00]} 5...
O-O {[%clk 0:02:58.1]} 6. O-O {[%clk 0:03:00.3]} 6... c6 {[%clk 0:02:58.1]} 7.
Qc2 {[%clk 0:02:59.7]} 7... dxc4 {[%clk 0:02:56.3]} 8. Qxc4 {[%clk 0:02:57.9]}
8... b5 {[%clk 0:02:57.2]} 9. Qc2 {[%clk 0:02:55.3]} 9... Ba6 {[%clk 0:02:53]}
10. Rd1 {[%clk 0:02:42.5]} 10... Qb6 {[%clk 0:02:48.3]} 11. Ne5 {[%clk
0:02:37.1]} 11... Rc8 {[%clk 0:02:34.3]} 12. Nc3 {[%clk 0:02:10.6]} 12... Bb7
{[%clk 0:02:28.2]} 13. a4 {[%clk 0:02:04.4]} 13... b4 {[%clk 0:02:14.3]} 14. a5
{[%clk 0:02:04.2]} 14... b3 {[%clk 0:01:46.4]} 15. Qd3 {[%clk 0:01:25.3]} 15...
Qa6 {[%clk 0:01:42.4]} 16. Qf3 {[%clk 0:01:22]} 16... Rc7 {[%clk 0:01:27.5]} 17.
e4 {[%clk 0:01:08.2]} 17... c5 {[%clk 0:01:25]} 18. dxc5 {[%clk 0:00:59.1]}
18... Bxc5 {[%clk 0:01:23.7]} 19. Bf1 {[%clk 0:00:57.8]} 19... Qd6 {[%clk
0:00:46.1]} 20. Rxd6 {[%clk 0:00:50.2]} 20... Bxd6 {[%clk 0:00:47]} 21. Nc4
{[%clk 0:00:43.1]} 21... Bb4 {[%clk 0:00:47]} 22. Bf4 {[%clk 0:00:39.3]} 22...
Rc8 {[%clk 0:00:43.4]} 23. Nd6 {[%clk 0:00:30]} 23... Bxd6 {[%clk 0:00:42.6]}
24. Bxd6 {[%clk 0:00:29.4]} 24... Nc6 {[%clk 0:00:41.8]} 25. a6 {[%clk
0:00:28.5]} 25... Nd4 {[%clk 0:00:40.3]} 26. Qd3 {[%clk 0:00:27.2]} 26... Bxe4
{[%clk 0:00:22.6]} 27. Qxd4 {[%clk 0:00:20.3]} 27... Bd5 {[%clk 0:00:19.3]} 28.
Nxd5 {[%clk 0:00:18.4]} 28... Nxd5 {[%clk 0:00:20.2]} 29. Bg2 {[%clk 0:00:16.8]}
29... Rd8 {[%clk 0:00:15.5]} 30. Bc5 {[%clk 0:00:13.1]} 30... Rac8 {[%clk
0:00:14.9]} 31. Bxa7 {[%clk 0:00:12.6]} 31... Nc3 {[%clk 0:00:13.8]} 32. Qxc3
{[%clk 0:00:06.8]} 32... Rxc3 {[%clk 0:00:12.8]} 33. bxc3 {[%clk 0:00:07.3]}
33... Rd7 {[%clk 0:00:13.7]} 34. Bd4 {[%clk 0:00:05.8]} 34... f5 {[%clk
0:00:14.6]} 35. a7 {[%clk 0:00:05.8]} 35... Kf7 {[%clk 0:00:13.8]} 36. a8=Q
{[%clk 0:00:05.5]} 36... Rxd4 {[%clk 0:00:13.9]} 37. cxd4 {[%clk 0:00:05.1]}
37... g6 {[%clk 0:00:13.4]} 38. Rb1 {[%clk 0:00:05.4]} 38... Kg7 {[%clk
0:00:13.8]} 39. Rxb3 {[%clk 0:00:05.9]} 39... Kh6 {[%clk 0:00:14.7]} 40. Qf8+
{[%clk 0:00:05.5]} 40... Kh5 {[%clk 0:00:14.1]} 41. Bf3+ {[%clk 0:00:05.4]}
41... Kg5 {[%clk 0:00:13.6]} 42. h4# {[%clk 0:00:06]} 1-0